[Event "NJSK 2018 Jeugd A"]
[Site "Assen, Netherlands"]
[Date "2018.05.03"]
[Round "5.6"]
[White "Gijsen, William"]
[Black "Reichardt, Robin"]
[Result "1/2-1/2"]
[TimeControl "40/90m+30m+30sec/move"]
[WhiteElo "1825"]
[BlackElo "1936"]

1. e4 {[%clk 01:30:57]} {[%emt 00:00:02]} e5 {[%clk 01:30:52]} {[%emt
00:00:08]} 2. Nf3 {[%clk 01:31:22]} {[%emt 00:00:06]} Nc6 {[%clk 01:31:11]}
{[%emt 00:00:10]} 3. Bc4 {[%clk 01:29:36]} {[%emt 00:02:16]} Nf6 {[%clk
01:30:31]} {[%emt 00:01:10]} 4. d3 {[%clk 01:29:49]} {[%emt 00:00:16]} Be7
{[%clk 01:29:44]} {[%emt 00:01:18]} 5. c3 {[%clk 01:29:19]} {[%emt 00:01:00]}
O-O {[%clk 01:27:23]} {[%emt 00:02:52]} 6. Bb3 {[%clk 01:28:39]} {[%emt
00:01:10]} d5 {[%clk 01:26:01]} {[%emt 00:01:51]} 7. Nbd2 {[%clk 01:28:39]}
{[%emt 00:00:30]} Bg4 {[%clk 01:21:47]} {[%emt 00:04:44]} 8. O-O {[%clk
01:27:39]} {[%emt 00:01:30]} dxe4 {[%clk 01:15:50]} {[%emt 00:06:28]} 9. dxe4
{[%clk 01:26:44]} {[%emt 00:01:24]} Bc5 {[%clk 01:12:16]} {[%emt 00:04:03]} 10.
h3 {[%clk 01:24:19]} {[%emt 00:02:56]} Bh5 {[%clk 01:10:44]} {[%emt 00:02:02]}
11. Re1 {[%clk 01:23:00]} {[%emt 00:01:49]} Qe7 {[%clk 01:08:14]} {[%emt
00:03:00]} 12. Qe2 {[%clk 01:22:18]} {[%emt 00:01:12]} Rad8 {[%clk 01:05:30]}
{[%emt 00:03:15]} 13. Nf1 {[%clk 01:19:51]} {[%emt 00:02:56]} Bg6 {[%clk
01:01:56]} {[%emt 00:04:04]} 14. Bg5 {[%clk 01:18:35]} {[%emt 00:01:46]} h6
{[%clk 01:00:15]} {[%emt 00:02:11]} 15. Bh4 {[%clk 01:18:59]} {[%emt 00:00:06]}
Bh7 {[%clk 00:58:38]} {[%emt 00:02:07]} 16. Bc2 {[%clk 01:17:44]} {[%emt
00:01:45]} g5 {[%clk 00:52:11]} {[%emt 00:06:58]} 17. Bg3 {[%clk 01:11:13]}
{[%emt 00:07:00]} Nh5 {[%clk 00:46:20]} {[%emt 00:06:21]} 18. b4 {[%clk
01:09:36]} {[%emt 00:02:07]} Bb6 {[%clk 00:43:21]} {[%emt 00:03:29]} 19. a4
{[%clk 01:07:37]} {[%emt 00:02:29]} a5 {[%clk 00:40:00]} {[%emt 00:03:51]} 20.
b5 {[%clk 01:07:27]} {[%emt 00:00:40]} Nxg3 {[%clk 00:39:34]} {[%emt 00:00:55]}
21. Nxg3 {[%clk 01:07:53]} {[%emt 00:00:04]} Nb8 {[%clk 00:38:29]} {[%emt
00:01:35]} 22. Nh2 {[%clk 00:58:01]} {[%emt 00:10:22]} Bg6 {[%clk 00:27:38]}
{[%emt 00:11:21]} 23. Ng4 {[%clk 00:55:50]} {[%emt 00:02:41]} Kh7 {[%clk
00:25:39]} {[%emt 00:02:29]} 24. Ne3 {[%clk 00:55:00]} {[%emt 00:01:20]} Bxe3
{[%clk 00:23:08]} {[%emt 00:03:01]} 25. Qxe3 {[%clk 00:55:28]} {[%emt
00:00:03]} Nd7 {[%clk 00:22:17]} {[%emt 00:01:22]} 26. Qf3 {[%clk 00:51:19]}
{[%emt 00:04:38]} 1/2-1/2

[Event "NJSK 2018 Jeugd A"]
[Site "Assen, Netherlands"]
[Date "2018.05.03"]
[Round "5.7"]
[White "Van Dael, Siem"]
[Black "Jongste, David"]
[Result "0-1"]
[TimeControl "40/90m+30m+30sec/move"]
[WhiteElo "2268"]
[BlackElo "2092"]

1. e4 {[%clk 01:30:56]} {[%emt 00:00:03]} c5 {[%clk 01:30:55]} {[%emt
00:00:06]} 2. Nf3 {[%clk 01:31:23]} {[%emt 00:00:03]} e6 {[%clk 01:31:17]}
{[%emt 00:00:07]} 3. d4 {[%clk 01:31:51]} {[%emt 00:00:03]} cxd4 {[%clk
01:31:38]} {[%emt 00:00:09]} 4. Nxd4 {[%clk 01:32:17]} {[%emt 00:00:04]} a6
{[%clk 01:31:36]} {[%emt 00:00:32]} 5. Bd3 {[%clk 01:32:38]} {[%emt 00:00:09]}
Qc7 {[%clk 01:31:29]} {[%emt 00:00:36]} 6. O-O {[%clk 01:32:46]} {[%emt
00:00:22]} Nc6 {[%clk 01:30:45]} {[%emt 00:01:15]} 7. c3 {[%clk 01:31:24]}
{[%emt 00:01:52]} Nf6 {[%clk 01:29:22]} {[%emt 00:01:53]} 8. Nd2 {[%clk
01:25:08]} {[%emt 00:06:45]} d5 {[%clk 01:23:40]} {[%emt 00:06:12]} 9. Nxc6
{[%clk 01:16:52]} {[%emt 00:08:46]} bxc6 {[%clk 01:23:38]} {[%emt 00:00:33]} 10.
f4 {[%clk 01:16:44]} {[%emt 00:00:38]} Be7 {[%clk 01:21:50]} {[%emt 00:02:17]}
11. e5 {[%clk 01:11:22]} {[%emt 00:05:53]} Nd7 {[%clk 01:21:31]} {[%emt
00:00:48]} 12. Nf3 {[%clk 01:11:37]} {[%emt 00:00:15]} O-O {[%clk 01:10:30]}
{[%emt 00:11:30]} 13. Kh1 {[%clk 01:08:41]} {[%emt 00:03:26]} Nc5 {[%clk
01:00:59]} {[%emt 00:10:02]} 14. Bc2 {[%clk 01:07:58]} {[%emt 00:01:13]} a5
{[%clk 00:58:32]} {[%emt 00:02:57]} 15. Be3 {[%clk 01:07:42]} {[%emt 00:00:46]}
g6 {[%clk 00:53:47]} {[%emt 00:05:16]} 16. g4 {[%clk 01:02:52]} {[%emt
00:05:19]} Ba6 {[%clk 00:50:28]} {[%emt 00:03:50]} 17. Rg1 {[%clk 01:01:58]}
{[%emt 00:01:23]} Ne4 {[%clk 00:41:33]} {[%emt 00:09:25]} 18. Nd2 {[%clk
00:56:57]} {[%emt 00:05:31]} Nxd2 {[%clk 00:38:21]} {[%emt 00:03:42]} 19. Qxd2
{[%clk 00:56:51]} {[%emt 00:00:35]} c5 {[%clk 00:37:55]} {[%emt 00:00:57]} 20.
Rg3 {[%clk 00:51:55]} {[%emt 00:05:26]} d4 {[%clk 00:31:01]} {[%emt 00:07:24]}
21. cxd4 {[%clk 00:51:25]} {[%emt 00:01:00]} cxd4 {[%clk 00:31:24]} {[%emt
00:00:07]} 22. Bxd4 {[%clk 00:51:05]} {[%emt 00:00:51]} Bb7 {[%clk 00:31:34]}
{[%emt 00:00:20]} 23. Kg1 {[%clk 00:50:14]} {[%emt 00:01:21]} Qc6 {[%clk
00:30:20]} {[%emt 00:01:43]} 24. Kf1 {[%clk 00:48:42]} {[%emt 00:02:02]} Rfd8
{[%clk 00:28:08]} {[%emt 00:02:42]} 0-1

[Event "NJSK 2018 Jeugd A"]
[Site "Assen, Netherlands"]
[Date "2018.05.03"]
[Round "5.8"]
[White "Kanbier, Max"]
[Black "Bueno, Mark"]
[Result "1/2-1/2"]
[TimeControl "40/90m+30m+30sec/move"]
[WhiteElo "1857"]
[BlackElo "1999"]

1. e4 {[%clk 01:30:58]} {[%emt 00:00:02]} e5 {[%clk 01:30:59]} {[%emt
00:00:02]} 2. Nf3 {[%clk 01:31:22]} {[%emt 00:00:05]} Nc6 {[%clk 01:31:25]}
{[%emt 00:00:05]} 3. Nc3 {[%clk 01:31:48]} {[%emt 00:00:04]} Nf6 {[%clk
01:31:50]} {[%emt 00:00:04]} 4. Bb5 {[%clk 01:32:13]} {[%emt 00:00:05]} d6
{[%clk 01:29:18]} {[%emt 00:03:03]} 5. d4 {[%clk 01:32:14]} {[%emt 00:00:29]}
exd4 {[%clk 01:29:41]} {[%emt 00:00:07]} 6. Nxd4 {[%clk 01:32:34]} {[%emt
00:00:10]} Bd7 {[%clk 01:29:55]} {[%emt 00:00:16]} 7. O-O {[%clk 01:28:34]}
{[%emt 00:04:29]} Nxd4 {[%clk 01:29:35]} {[%emt 00:00:50]} 8. Qxd4 {[%clk
01:28:50]} {[%emt 00:00:14]} Be7 {[%clk 01:26:06]} {[%emt 00:04:00]} 9. Qd3
{[%clk 01:24:08]} {[%emt 00:05:11]} O-O {[%clk 01:26:03]} {[%emt 00:00:33]} 10.
f4 {[%clk 01:23:30]} {[%emt 00:01:09]} a6 {[%clk 01:23:17]} {[%emt 00:03:17]}
11. Bxd7 {[%clk 01:23:30]} {[%emt 00:00:29]} Qxd7 {[%clk 01:23:28]} {[%emt
00:00:19]} 12. Be3 {[%clk 01:23:32]} {[%emt 00:00:27]} Rad8 {[%clk 01:21:32]}
{[%emt 00:02:26]} 13. Rad1 {[%clk 01:23:30]} {[%emt 00:00:33]} Qc6 {[%clk
01:18:08]} {[%emt 00:03:54]} 14. Nd5 {[%clk 01:22:22]} {[%emt 00:01:38]} Nxd5
{[%clk 01:17:55]} {[%emt 00:00:43]} 15. exd5 {[%clk 01:22:47]} {[%emt
00:00:05]} Qd7 {[%clk 01:16:25]} {[%emt 00:02:00]} 16. Bd4 {[%clk 01:23:06]}
{[%emt 00:00:10]} f5 {[%clk 01:15:49]} {[%emt 00:01:06]} 17. Rfe1 {[%clk
01:22:32]} {[%emt 00:01:05]} Bf6 {[%clk 01:15:41]} {[%emt 00:00:38]} 18. Re6
{[%clk 01:22:12]} {[%emt 00:00:49]} Bxd4+ {[%clk 01:15:35]} {[%emt 00:00:37]}
19. Qxd4 {[%clk 01:22:37]} {[%emt 00:00:05]} Rde8 {[%clk 01:14:46]} {[%emt
00:01:19]} 20. Rde1 {[%clk 01:22:54]} {[%emt 00:00:13]} 1/2-1/2

[Event "NJSK 2018 Jeugd A"]
[Site "Assen, Netherlands"]
[Date "2018.05.03"]
[Round "5.9"]
[White "Van Hoorn, Geert"]
[Black "Van der Werf, Joel"]
[Result "1-0"]
[TimeControl "40/90m+30m+30sec/move"]
[WhiteElo "2008"]
[BlackElo "1842"]

1. e4 {[%clk 01:30:58]} e5 {[%clk 01:30:57]} {[%emt 00:00:05]} 2. Nf3 {[%clk
01:31:20]} {[%emt 00:00:08]} Nc6 {[%clk 01:31:20]} {[%emt 00:00:06]} 3. d4
{[%clk 01:31:42]} {[%emt 00:00:08]} exd4 {[%clk 01:31:43]} {[%emt 00:00:07]} 4.
Nxd4 {[%clk 01:32:05]} {[%emt 00:00:07]} Nf6 {[%clk 01:32:03]} {[%emt
00:00:11]} 5. Nxc6 {[%clk 01:32:25]} {[%emt 00:00:10]} bxc6 {[%clk 01:32:27]}
{[%emt 00:00:06]} 6. e5 {[%clk 01:32:45]} {[%emt 00:00:10]} Qe7 {[%clk
01:32:52]} {[%emt 00:00:06]} 7. Qe2 {[%clk 01:33:09]} {[%emt 00:00:06]} Nd5
{[%clk 01:33:18]} {[%emt 00:00:03]} 8. h4 {[%clk 01:33:20]} {[%emt 00:00:18]}
Rb8 {[%clk 01:28:16]} {[%emt 00:05:33]} 9. c4 {[%clk 01:32:15]} {[%emt
00:01:34]} Ba6 {[%clk 01:26:43]} {[%emt 00:02:04]} 10. b3 {[%clk 01:30:55]}
{[%emt 00:01:50]} d6 {[%clk 01:03:41]} {[%emt 00:23:32]} 11. exd6 {[%clk
01:31:15]} {[%emt 00:00:10]} cxd6 {[%clk 01:04:05]} {[%emt 00:00:06]} 12. Qxe7+
{[%clk 01:30:44]} {[%emt 00:01:01]} Nxe7 {[%clk 01:04:13]} {[%emt 00:00:22]} 13.
Bf4 {[%clk 01:25:27]} {[%emt 00:05:46]} Ng6 {[%clk 01:02:03]} {[%emt 00:02:40]}
14. Bg3 {[%clk 01:24:59]} {[%emt 00:00:57]} Kd7 {[%clk 00:53:04]} {[%emt
00:09:31]} 15. Nc3 {[%clk 01:23:07]} {[%emt 00:02:22]} Re8+ {[%clk 00:53:11]}
{[%emt 00:00:22]} 16. Be2 {[%clk 01:22:21]} {[%emt 00:01:16]} f5 {[%clk
00:46:48]} {[%emt 00:06:53]} 17. h5 {[%clk 01:17:41]} {[%emt 00:05:10]} Ne5
{[%clk 00:44:44]} {[%emt 00:02:35]} 18. O-O-O {[%clk 01:17:13]} {[%emt
00:00:58]} Kc7 {[%clk 00:39:08]} {[%emt 00:06:06]} 19. Rhe1 {[%clk 01:16:08]}
{[%emt 00:01:34]} Bc8 {[%clk 00:34:56]} {[%emt 00:04:43]} 20. Bf1 {[%clk
01:13:40]} {[%emt 00:02:58]} Bd7 {[%clk 00:28:48]} {[%emt 00:06:38]} 21. c5
{[%clk 01:11:41]} {[%emt 00:02:29]} Re6 {[%clk 00:18:49]} {[%emt 00:10:28]} 22.
Kc2 {[%clk 01:05:56]} {[%emt 00:06:16]} Be7 {[%clk 00:18:05]} {[%emt 00:01:14]}
23. Rd4 {[%clk 01:03:55]} {[%emt 00:02:30]} Re8 {[%clk 00:15:34]} {[%emt
00:03:01]} 24. cxd6+ {[%clk 00:59:38]} {[%emt 00:04:47]} Bxd6 {[%clk 00:15:34]}
{[%emt 00:00:31]} 25. Red1 {[%clk 00:59:30]} {[%emt 00:00:37]} R8e7 {[%clk
00:14:56]} {[%emt 00:01:08]} 26. b4 {[%clk 00:48:12]} {[%emt 00:11:49]} g5
{[%clk 00:08:48]} {[%emt 00:06:37]} 27. hxg6 {[%clk 00:47:46]} {[%emt
00:00:57]} hxg6 {[%clk 00:09:12]} {[%emt 00:00:06]} 28. Bf4 {[%clk 00:44:24]}
{[%emt 00:03:51]} Nf7 {[%clk 00:07:55]} {[%emt 00:01:46]} 29. Bc4 {[%clk
00:39:26]} {[%emt 00:05:29]} Rf6 {[%clk 00:06:51]} {[%emt 00:01:34]} 30. Bc1
{[%clk 00:25:38]} {[%emt 00:14:18]} Bxb4 {[%clk 00:04:37]} {[%emt 00:02:44]} 31.
Bxf7 {[%clk 00:24:21]} {[%emt 00:01:47]} Bxc3 {[%clk 00:05:02]} {[%emt
00:00:06]} 32. Bf4+ {[%clk 00:24:07]} {[%emt 00:00:43]} Kc8 {[%clk 00:04:54]}
{[%emt 00:00:39]} 33. Kxc3 {[%clk 00:24:02]} {[%emt 00:00:34]} c5 {[%clk
00:04:13]} {[%emt 00:01:12]} 34. Rxd7 {[%clk 00:15:02]} {[%emt 00:09:30]} Rxd7
{[%clk 00:04:10]} {[%emt 00:00:32]} 35. Rxd7 {[%clk 00:15:25]} {[%emt
00:00:07]} Kxd7 {[%clk 00:04:37]} {[%emt 00:00:03]} 36. Bb3 {[%clk 00:15:27]}
{[%emt 00:00:27]} Kc6 {[%clk 00:02:36]} {[%emt 00:02:32]} 37. Kc4 {[%clk
00:14:28]} {[%emt 00:01:30]} Re6 {[%clk 00:02:41]} {[%emt 00:00:24]} 38. Kd3
{[%clk 00:09:31]} {[%emt 00:05:26]} Re4 {[%clk 00:02:09]} {[%emt 00:01:03]} 39.
g3 {[%clk 00:09:37]} {[%emt 00:00:23]} Re7 {[%clk 00:01:57]} {[%emt 00:00:43]}
40. Bg5 {[%clk 00:09:10]} {[%emt 00:00:55]} Rd7+ {[%clk 00:00:46]} {[%emt
00:01:43]} 41. Kc4 {[%clk 00:08:07]} {[%emt 00:01:33]} Rb7 {[%clk 00:26:53]}
{[%emt 00:04:23]} 42. Be3 {[%clk 00:37:29]} {[%emt 00:01:09]} Rb4+ {[%clk
00:26:42]} {[%emt 00:00:41]} 43. Kc3 {[%clk 00:37:39]} {[%emt 00:00:19]} Kb6
{[%clk 00:20:27]} {[%emt 00:06:45]} 44. Bf7 {[%clk 00:35:44]} {[%emt 00:02:24]}
Rg4 {[%clk 00:19:26]} {[%emt 00:01:32]} 45. Bd5 {[%clk 00:28:51]} {[%emt
00:07:21]} Kb5 {[%clk 00:15:53]} {[%emt 00:04:05]} 46. Bf4 {[%clk 00:28:18]}
{[%emt 00:01:02]} g5 {[%clk 00:15:57]} {[%emt 00:00:27]} 47. f3 {[%clk
00:28:31]} {[%emt 00:00:17]} Rxf4 {[%clk 00:14:28]} {[%emt 00:01:59]} 48. gxf4
{[%clk 00:28:49]} {[%emt 00:00:12]} gxf4 {[%clk 00:14:56]} {[%emt 00:00:03]} 49.
Kb3 {[%emt 00:02:51]} a5 {[%clk 00:13:12]} 50. a4+ {[%clk 00:28:58]} {[%emt
00:00:13]} 1-0

[Event "NJSK 2018 Jeugd A"]
[Site "Assen, Netherlands"]
[Date "2018.05.04"]
[Round "6.1"]
[White "Warmerdam, Max"]
[Black "Pols, Wiggert"]
[Result "0-1"]
[TimeControl "40/90m+30m+30sec/move"]
[WhiteElo "2378"]
[BlackElo "2068"]

1. d4 {[%clk 01:30:58]} {[%emt 00:00:02]} Nf6 {[%clk 01:30:54]} {[%emt
00:00:06]} 2. c4 {[%clk 01:31:24]} {[%emt 00:00:04]} g6 {[%clk 01:31:20]}
{[%emt 00:00:04]} 3. g3 {[%clk 01:31:51]} {[%emt 00:00:04]} Bg7 {[%clk
01:31:45]} {[%emt 00:00:05]} 4. Bg2 {[%clk 01:32:17]} {[%emt 00:00:04]} O-O
{[%clk 01:32:08]} {[%emt 00:00:06]} 5. Nc3 {[%clk 01:32:44]} {[%emt 00:00:04]}
d6 {[%clk 01:32:33]} {[%emt 00:00:06]} 6. Nf3 {[%clk 01:33:09]} {[%emt
00:00:04]} c5 {[%clk 01:32:56]} {[%emt 00:00:07]} 7. d5 {[%clk 01:33:34]}
{[%emt 00:00:05]} Na6 {[%clk 01:32:45]} {[%emt 00:00:40]} 8. O-O {[%clk
01:26:24]} {[%emt 00:07:41]} Nc7 {[%clk 01:32:21]} {[%emt 00:00:54]} 9. a4
{[%clk 01:23:38]} {[%emt 00:03:16]} e5 {[%clk 01:22:36]} {[%emt 00:10:14]} 10.
e4 {[%clk 01:23:25]} {[%emt 00:00:43]} Bg4 {[%clk 01:16:45]} {[%emt 00:06:21]}
11. h3 {[%clk 01:23:33]} {[%emt 00:00:22]} Bd7 {[%clk 01:14:18]} {[%emt
00:02:57]} 12. Be3 {[%clk 01:02:38]} {[%emt 00:21:26]} b6 {[%clk 01:10:02]}
{[%emt 00:04:46]} 13. Ne1 {[%clk 01:00:33]} {[%emt 00:02:34]} Nh5 {[%clk
01:06:59]} {[%emt 00:03:32]} 14. Kh2 {[%clk 00:56:07]} {[%emt 00:04:57]} a6
{[%clk 01:02:26]} {[%emt 00:05:04]} 15. Nc2 {[%clk 00:50:02]} {[%emt 00:06:35]}
f5 {[%clk 00:53:21]} {[%emt 00:09:35]} 16. exf5 {[%clk 00:49:57]} {[%emt
00:00:34]} Bxf5 {[%clk 00:53:25]} {[%emt 00:00:26]} 17. a5 {[%clk 00:43:43]}
{[%emt 00:06:45]} b5 {[%clk 00:49:54]} {[%emt 00:04:00]} 18. b4 {[%clk
00:43:05]} {[%emt 00:01:08]} bxc4 {[%clk 00:38:48]} {[%emt 00:11:37]} 19. bxc5
{[%clk 00:42:39]} {[%emt 00:00:56]} Bd3 {[%clk 00:38:29]} {[%emt 00:00:48]} 20.
Be4 {[%clk 00:20:44]} {[%emt 00:22:25]} dxc5 {[%clk 00:22:21]} {[%emt
00:16:39]} 21. Bxd3 {[%clk 00:20:49]} {[%emt 00:00:25]} cxd3 {[%clk 00:22:38]}
{[%emt 00:00:13]} 22. Qxd3 {[%clk 00:21:12]} {[%emt 00:00:06]} e4 {[%clk
00:22:45]} {[%emt 00:00:24]} 23. Qc4 {[%clk 00:21:15]} {[%emt 00:00:27]} Bxc3
{[%clk 00:21:48]} {[%emt 00:01:27]} 24. d6+ {[%clk 00:21:18]} {[%emt 00:00:26]}
Rf7 {[%clk 00:19:53]} {[%emt 00:02:26]} 25. dxc7 {[%clk 00:17:35]} {[%emt
00:04:14]} Qf6 {[%clk 00:20:13]} {[%emt 00:00:08]} 26. Qxc5 {[%clk 00:13:14]}
{[%emt 00:04:52]} Rc8 {[%clk 00:18:37]} {[%emt 00:02:06]} 27. Bd4 {[%clk
00:13:19]} {[%emt 00:00:25]} Bxd4 {[%clk 00:18:31]} {[%emt 00:00:37]} 28. Qxd4
{[%clk 00:13:43]} {[%emt 00:00:06]} Rcxc7 {[%clk 00:17:59]} {[%emt 00:01:01]}
29. Qxf6 {[%clk 00:14:00]} {[%emt 00:00:13]} Nxf6 {[%clk 00:18:12]} {[%emt
00:00:17]} 30. Nb4 {[%clk 00:14:16]} {[%emt 00:00:14]} Rc4 {[%clk 00:16:01]}
{[%emt 00:02:41]} 31. Rab1 {[%clk 00:13:23]} {[%emt 00:01:23]} Rc5 {[%clk
00:15:44]} {[%emt 00:00:47]} 32. Ra1 {[%clk 00:11:17]} {[%emt 00:02:37]} Rb7
{[%clk 00:15:24]} {[%emt 00:00:49]} 33. Ra4 {[%clk 00:09:32]} {[%emt 00:02:15]}
Rc4 {[%clk 00:13:33]} {[%emt 00:02:21]} 34. Rb1 {[%clk 00:09:58]} {[%emt
00:00:04]} e3 {[%clk 00:13:42]} {[%emt 00:00:22]} 35. Kg2 {[%clk 00:08:22]}
{[%emt 00:02:06]} e2 {[%clk 00:13:45]} {[%emt 00:00:26]} 36. Nd3 {[%clk
00:07:15]} {[%emt 00:01:38]} Rxb1 {[%clk 00:11:30]} {[%emt 00:02:45]} 37. Rxc4
{[%clk 00:07:40]} {[%emt 00:00:05]} Rd1 {[%clk 00:11:26]} {[%emt 00:00:34]} 38.
Kf3 {[%clk 00:07:26]} {[%emt 00:00:44]} Rxd3+ {[%clk 00:11:48]} {[%emt
00:00:09]} 39. Kxe2 {[%clk 00:07:52]} {[%emt 00:00:03]} Rd6 {[%clk 00:11:40]}
{[%emt 00:00:38]} 40. Rc7 {[%clk 00:08:01]} {[%emt 00:00:22]} Nd7 {[%clk
00:09:46]} {[%emt 00:02:23]} 41. f4 {[%clk 00:02:49]} {[%emt 00:05:42]} Kf7
{[%clk 00:08:43]} {[%emt 00:01:34]} 42. g4 {[%clk 00:02:30]} {[%emt 00:00:48]}
Ke6 {[%clk 00:08:24]} {[%emt 00:00:50]} 43. Ke3 {[%clk 00:01:44]} {[%emt
00:01:12]} Nf6 {[%clk 00:07:49]} {[%emt 00:01:08]} 44. Ra7 {[%clk 00:24:43]}
{[%emt 00:07:31]} Kd5 {[%clk 00:30:52]} {[%emt 00:07:26]} 45. Rf7 {[%clk
00:18:53]} {[%emt 00:06:21]} Kc6 {[%clk 00:28:40]} {[%emt 00:02:42]} 46. f5
{[%clk 00:13:53]} {[%emt 00:05:30]} gxf5 {[%clk 00:22:42]} {[%emt 00:06:28]} 47.
gxf5 {[%clk 00:14:17]} {[%emt 00:00:06]} h6 {[%clk 00:22:03]} {[%emt 00:01:08]}
48. Kf4 {[%clk 00:10:16]} {[%emt 00:04:32]} Nd7 {[%clk 00:21:18]} {[%emt
00:01:15]} 49. Re7 {[%clk 00:09:56]} {[%emt 00:00:49]} Kb5 {[%clk 00:11:00]}
{[%emt 00:10:49]} 50. Kg4 {[%clk 00:04:39]} {[%emt 00:05:47]} Kxa5 {[%clk
00:09:26]} {[%emt 00:02:04]} 51. Kh5 {[%clk 00:05:08]} {[%emt 00:00:01]} Kb5
{[%clk 00:07:17]} {[%emt 00:02:39]} 52. Re6 {[%clk 00:01:52]} {[%emt 00:03:45]}
Rxe6 {[%clk 00:03:41]} {[%emt 00:04:05]} 53. fxe6 {[%clk 00:02:17]} {[%emt
00:00:05]} Nf6 {[%clk 00:03:53]} {[%emt 00:00:18]} 54. Kxh6 {[%clk 00:02:41]}
{[%emt 00:00:07]} Ne8 {[%clk 00:03:40]} {[%emt 00:00:43]} 55. Kg6 {[%clk
00:02:49]} {[%emt 00:00:22]} a5 {[%clk 00:03:53]} {[%emt 00:00:18]} 56. Kf7
{[%clk 00:03:16]} {[%emt 00:00:02]} Nd6+ {[%clk 00:03:35]} {[%emt 00:00:48]} 57.
Ke7 {[%clk 00:02:59]} {[%emt 00:00:47]} Kc6 {[%clk 00:03:41]} {[%emt 00:00:24]}
58. h4 {[%clk 00:03:20]} {[%emt 00:00:09]} a4 {[%clk 00:04:07]} {[%emt
00:00:05]} 59. h5 {[%clk 00:03:47]} {[%emt 00:00:02]} a3 {[%clk 00:04:19]}
{[%emt 00:00:18]} 60. h6 {[%clk 00:04:15]} {[%emt 00:00:02]} a2 {[%clk
00:04:34]} {[%emt 00:00:15]} 61. h7 {[%clk 00:04:43]} {[%emt 00:00:02]} a1=Q
{[%clk 00:03:32]} {[%emt 00:01:32]} 62. h8=Q {[%clk 00:05:10]} {[%emt
00:00:03]} Nf5+ {[%clk 00:03:51]} {[%emt 00:00:11]} 0-1